Cogmind - Beta 9.6 *** ADVENTURER MODE // 2020.05.31 @ 22:07:53 Player: Wololo Result: Destroyed by Y-45 Defender with Heavy Assault Rifle Performance ------------- Evolutions (1) 500 Regions Visited (4) 800 Robots Destroyed (41) 205 Value Destroyed (1433) 1433 Prototype IDs (5) 100 Alien Tech Used (0) 0 Bonus (0) 0 TOTAL SCORE: 3038 Bonus ------- None Cogmind --------- Core Integrity 0/400 Matter 357/450 Energy 460/460 System Corruption 3% Temperature Cool (9) Movement Treading (180) Ox1 Location -9/Storage Parts ------- > --- POWER (2) -------- Heavy Ion Engine Heavy Ion Engine > --- PROPULSION (2) --- Light Treads Light Treads > --- UTILITY (3) ------ Large Storage Unit Compact Matter Pod Drone Bay (0/2) > --- WEAPON (2) ------- Improved Assault Rifle Mace > --- INVENTORY (10) --- Improved Heat Sink Small Battery (100) Transport Network Coupler Improved Targeting Computer Improved Assault Rifle Datajack Peak State ------------ > --- POWER ------------ Heavy Ion Engine Heavy Ion Engine > --- PROPULSION ------- Light Treads Light Treads > --- UTILITY ---------- Large Storage Unit Compact Matter Pod Drone Bay > --- WEAPON ----------- Improved Assault Rifle Mace > --- INVENTORY -------- Improved Heat Sink Small Battery Transport Network Coupler Improved Targeting Computer Improved Assault Rifle Datajack [Rating: 23] Favorites ----------- Power Ion Engine Engine Ion Engine Power Core Light Nuclear Core Propulsion Hover Unit Treads Light Treads Leg Aluminum Leg Wheel Compact Wheel Hover Unit Hover Unit Utility Large Storage Unit Device Structural Scanner Storage Large Storage Unit Processor Advanced Visual Processing Unit Protection Power Shielding Weapon Maul Energy Gun Small Laser Energy Cannon Beam Cannon Ballistic Gun Heavy Assault Rifle Launcher Grenade Launcher Special Weapon Mining Laser Impact Weapon Maul Special Melee Weapon Datajack Build | -11 -10 -10 -9 -9 ------- Run | Scr Mat Min Mat Sto Slots Evolved 2 | . . . 2 . Power 1 | . . . 1 . Propulsion . | . . . . . Utility 1 | . . . 1 . Weapon . | . . . . . Parts Attached 60 | 9 17 4 18 12 Power 9 | 2 2 . 3 2 Engine 8 | 2 1 . 3 2 Core 1 | . 1 . . . Reactor . | . . . . . Propulsion 16 | 2 3 1 6 4 Treads 6 | . . . 4 2 Leg 4 | 2 1 . 1 . Wheel 3 | . . . 1 2 Hover 3 | . 2 1 . . Flight . | . . . . . Utility 17 | 1 6 2 6 2 Device 9 | 1 4 1 2 1 Storage 5 | . 1 1 2 1 Processor 1 | . . . 1 . Hackware . | . . . . . Protection 2 | . 1 . 1 . Artifact . | . . . . . Weapon 18 | 4 6 1 3 4 Energy Gun 3 | 1 . 1 . 1 Energy Cannon 1 | . 1 . . . Ballistic Gun 7 | 3 2 . 1 1 Ballistic Cannon . | . . . . . Launcher 1 | . 1 . . . Special Weapon 2 | . 2 . . . Impact Weapon 3 | . . . 1 2 Slashing Weapon . | . . . . . Piercing Weapon . | . . . . . Special Melee Weapon 1 | . . . 1 . Unidentified Prototypes 3 | . . . 1 2 Parts Lost 15 | . 4 . 11 . Power 3 | . 1 . 2 . Propulsion 5 | . 1 . 4 . Utility 3 | . . . 3 . Weapon 4 | . 2 . 2 . Highest Loss Streak 4 | . 4 . 4 . Average Slot Usage (%) 84 | . 89 79 80 94 Engine 10 | . 11 . 13 20 Treads 8 | . . . 13 17 Leg 1 | . 6 . . . Wheel 1 | . . . 1 3 Hover 9 | . 17 25 . . Device 7 | . 17 3 8 1 Storage 13 | . 8 12 13 22 Processor 1 | . . . 3 . Protection 6 | . . 12 5 9 Energy Gun 4 | . 3 11 1 4 Ballistic Gun 5 | . 9 . 7 4 Launcher 3 | . 1 14 . . Special Weapon 1 | . 7 . . . Impact Weapon 5 | . . . 10 11 Naked Turns . | . . . . . Heaviest Build 44 | 8 11 21 36 44 Greatest Support 46 | 20 20 12 46 40 Greatest Overweight (x) 10 | . 1 3 10 5 Average Overweight (x) . | . . . . . Largest Inventory Capacity 10 | 4 4 10 10 10 Average Capacity 8 | 4 4 9 10 10 Most Carried 10 | 4 4 5 10 9 Average Carried 5 | 2 2 4 7 5 Final Capacity 10 | 4 4 10 10 10 Final Carried 6 | 3 4 5 5 6 Class Distribution -------------------- 95% | Mutant 4% | Scavenger-Mutant Dominant Class ---------------- Mutant | -10/Materials Mutant | -10/Mines Mutant | -9/Materials Mutant | -9/Storage Resources | -11 -10 -10 -9 -9 ----------- Run | Scr Mat Min Mat Sto Matter Collected 1138 | 291 101 140 447 159 Remotely 10 | . 10 . . . Salvage Created 1635 | 39 250 52 855 439 Parts 82 | 4 16 1 37 24 Haulers Intercepted 1 | . . . . 1 Recyclers Shooed . | . . . . . Parts Field Recycled . | . . . . . Retrieved Matter . | . . . . . Parts Self-Destructed . | . . . . . Prevented . | . . . . . Kills | -11 -10 -10 -9 -9 ------- Run | Scr Mat Min Mat Sto Combat Hostiles Destroyed 38 | 1 5 2 21 9 Melee 12 | . . . 10 2 Guns 11 | 1 1 . 3 6 Cannons 3 | . 3 . . . AOE 3 | . 1 2 . . Classes Destroyed 8 | 1 2 . 4 1 Builder 1 | . 1 . . . Hauler 1 | . . . . 1 Watcher 1 | . 1 . . . Swarmer 3 | . . . 3 . Grunt 26 | 1 5 2 12 6 Brawler 1 | . . . 1 . Duelist 1 | . . . 1 . Sentry 7 | . . . 4 3 Best Kill Streak 6 | 1 2 2 6 6 Combat Bots Only 6 | 1 2 2 6 5 Max Kills in Single Turn 1 | 1 1 1 1 1 Gunslinging . | . . . . . Exploded 1 | . 1 1 . . Melee 1 | . . . 1 1 Uniques/NPCs Destroyed . | . . . . . Combat | -11 -10 -10 -9 -9 -------- Run | Scr Mat Min Mat Sto Damage Taken 2290 | 17 369 19 1343 542 Core 504 | 8 88 8 335 65 Absorbed by Shields . | . . . . . Core Remaining (%) 77 | 96 . 58 . . Volleys Fired 118 | 5 43 4 19 47 Largest 2 | 1 2 1 1 1 Hottest 200 | 20 200 30 40 56 Shots Fired 144 | 5 69 4 19 47 Gun 112 | 5 41 . 19 47 Cannon 19 | . 19 . . . Launcher 11 | . 7 4 . . Special 2 | . 2 . . . Kinetic 88 | 5 31 . 17 35 Thermal 45 | . 31 . 2 12 Explosive 11 | . 7 4 . . Electromagnetic . | . . . . . Robot Hit Streak 30 | 4 11 9 13 30 Robot Miss Streak 10 | 1 10 . 3 1 Penetration Max . | . . . . . Secondary Targets . | . . . . . Shots Hit Robots 165 | 4 37 3 78 43 Core Hits 54 | 2 14 5 19 14 Critical Hits 1 | . 1 . . . Critical Kills . | . . . . . Critical Parts Destroyed 1 | . 1 . . . Melee Attacks 73 | . . . 66 7 Impact 72 | . . . 65 7 Slashing . | . . . . . Piercing . | . . . . . Sneak Attacks . | . . . . . Combat Hostiles . | . . . . . Follow-up Attacks 1 | . . . . 1 Damage Inflicted 3368 | 36 757 210 1705 660 Guns 979 | 36 168 . 240 535 Cannons 294 | . 294 . . . Explosions 493 | . 283 210 . . Melee 1590 | . . . 1465 125 Ramming 12 | . 12 . . . Kinetic 857 | 36 114 . 216 491 Thermal 416 | . 348 . 24 44 Explosive 493 | . 283 210 . . Electromagnetic . | . . . . . Impact 1590 | . . . 1465 125 Slashing . | . . . . . Piercing . | . . . . . Highest Corruption 3 | . . . 3 3 Average Corruption 3 | . . . 3 3 Corruption Purged . | . . . . . Effects 23 | . . . 13 10 Message Errors 6 | . . . 4 2 Matter Fused 7 | . . . 4 3 Heat Flow Errors 3 | . . . 2 1 Energy Discharges 1 | . . . 1 . Data Loss (minor) 3 | . . . . 3 Targeting Errors 3 | . . . 2 1 Overload Shots . | . . . . . Overflow Damage 116 | . . . 101 15 Projectiles . | . . . . . Explosions . | . . . . . Melee 116 | . . . 101 15 Knockbacks 9 | . 1 . 7 1 Impact 7 | . 1 . 5 1 Kinetic . | . . . . . Secondary 2 | . . . 2 . Self-Inflicted Damage 6 | . 6 . . . Shots . | . . . . . Rammed 2 | . 2 . . . Targets Rammed 2 | . 2 . . . Kicked . | . . . . . Crushed . | . . . . . Highest Temperature 328 | 6 328 . 190 164 Average Temperature 88 | 6 129 . 78 47 Received Heat Transfer 1068 | 12 273 15 441 327 Siege Activations . | . . . . . Robots Corrupted . | . . . . . Combat Hostiles . | . . . . . Parts Fried 7 | . . . 5 2 Impact Corruptions 12 | . . . 11 1 Robots Melted . | . . . . . Combat Hostiles . | . . . . . Parts Melted . | . . . . . Heat Transferred 915 | . 754 . 50 111 Parts Sabotaged . | . . . . . Parts Stolen . | . . . . . Parts Stripped . | . . . . . Power Chain Reactions . | . . . . . Missiles Intercepted . | . . . . . Alert | -11 -10 -10 -9 -9 ------- Run | Scr Mat Min Mat Sto Peak Influence 217 | 20 123 90 195 217 Average Influence 68 | 5 45 41 79 124 Maximum Alert Level 1 | . . . . 1 Low Security (%) 99 | 100 100 100 100 98 Level 1 . | . . . . 1 Level 2 . | . . . . . Level 3 . | . . . . . Level 4 . | . . . . . Level 5 . | . . . . . High Security . | . . . . . Max Security . | . . . . . Squads Dispatched 5 | . 2 . 1 2 Investigation 3 | . 2 . . 1 Extermination . | . . . . . Reinforcement 2 | . . . 1 1 Assault . | . . . . . Garrison . | . . . . . Intercept . | . . . . . Construction Impeded . | . . . . . Haulers Reinforced . | . . . . . Stealth | -11 -10 -10 -9 -9 --------- Run | Scr Mat Min Mat Sto Distress Signals 1 | . . . 1 . Communications Jammed . | . . . . . Distress Signals . | . . . . . Times Spotted 56 | 1 11 2 30 12 Peak Tracking Total 5 | 1 3 2 5 4 Tactical Retreats 1 | . . . 1 . Traps | -11 -10 -10 -9 -9 ------- Run | Scr Mat Min Mat Sto Traps Triggered 2 | . 2 . . . Indirectly . | . . . . . Trap Hack Attempts . | . . . . . Triggered . | . . . . . Disarmed . | . . . . . Reprogrammed . | . . . . . Reused . | . . . . . Traps Extracted . | . . . . . Installed . | . . . . . Triggered . | . . . . . Machines | -11 -10 -10 -9 -9 ---------- Run | Scr Mat Min Mat Sto Machines Disabled 2 | . 2 . . . Max in Single Turn 2 | . 2 . . . Machines Sabotaged . | . . . . . Garrisons Compromised . | . . . . . Overloaded Fab Kills . | . . . . . Fab Network Shutdowns . | . . . . . Hacking | -11 -10 -10 -9 -9 --------- Run | Scr Mat Min Mat Sto Machines Accessed 12 | . 4 . 3 5 Terminals 10 | . 3 . 3 4 Fabricators . | . . . . . Repair Stations 1 | . . . . 1 Recycling Units 1 | . 1 . . . Scanalyzers . | . . . . . Garrison Access . | . . . . . Total Hacks 38 | . 15 . 6 17 Successful 24 | . 9 . 4 11 Failed 14 | . 6 . 2 6 Catastrophic 1 | . 1 . . . Database Lockouts . | . . . . . Manual 4 | . . . . 4 Terminals 33 | . 12 . 6 15 Fabricators . | . . . . . Repair Stations 2 | . . . . 2 Recycling Units 3 | . 3 . . . Scanalyzers . | . . . . . Garrison Access . | . . . . . Terminal Hacks 22 | . 8 . 4 10 Record 8 | . 3 . 1 4 Prototype ID Bank 1 | . . . . 1 Open Door 2 | . . . . 2 Emergency Access Points 1 | . . . 1 . Alert Level 2 | . 2 . . . Locate Traps 3 | . 1 . 1 1 Dispatch Records 2 | . 1 . 1 . Maintenance Status 1 | . 1 . . . Patrol Status 1 | . . . . 1 Reinforcement Status 1 | . . . . 1 Fabricator Hacks . | . . . . . Repair Station Hacks 1 | . . . . 1 Refit 1 | . . . . 1 Recycling Unit Hacks 1 | . 1 . . . Process 1 | . 1 . . . Scanalyzer . | . . . . . Garrison Access Hacks . | . . . . . Unauthorized Hacks . | . . . . . Terminals . | . . . . . Fabricators . | . . . . . Repair Stations . | . . . . . Recycling Units . | . . . . . Scanalyzers . | . . . . . Garrison Access . | . . . . . Data Cores Recovered . | . . . . . Used . | . . . . . Hacking Detections 10 | . 3 . 2 5 Full Trace Events 3 | . 2 . . 1 Feedback Events . | . . . . . Feedback Blocked . | . . . . . Robot Schematics Acquired . | . . . . . Robots Built . | . . . . . Matter . | . . . . . Time . | . . . . . Total Robot Build Rating . | . . . . . Part Schematics Acquired . | . . . . . Parts Built . | . . . . . Matter . | . . . . . Time . | . . . . . Total Part Build Rating . | . . . . . Parts Repaired . | . . . . . Time . | . . . . . Parts Recycled . | . . . . . Recycled Matter 110 | . 110 . . . Retrieved Matter . | . . . . . Retrieved Components . | . . . . . Parts Scanalyzed . | . . . . . Part Schematics Acquired . | . . . . . Parts Damaged . | . . . . . Bothacking | -11 -10 -10 -9 -9 ------------ Run | Scr Mat Min Mat Sto Used RIF Installer . | . . . . . Robots Hacked 1 | . . . 1 . Non-combat . | . . . . . Combat 1 | . . . 1 . Robot Hacks Applied 1 | . . . 1 . parse_system 1 | . . . 1 . Relay Couplers Released . | . . . . . Robots Rewired . | . . . . . Allies Hacked . | . . . . . Hacks Repelled . | . . . . . Allies | -11 -10 -10 -9 -9 -------- Run | Scr Mat Min Mat Sto Total Allies . | . . . . . Largest Group . | . . . . . Highest-Rated Group . | . . . . . Highest-Rated Ally . | . . . . . Total Orders . | . . . . . Ally Attacks . | . . . . . Total Damage . | . . . . . Kills . | . . . . . Allies Corrupted . | . . . . . Allies Melted . | . . . . . Intel | -11 -10 -10 -9 -9 ------- Run | Scr Mat Min Mat Sto Robot Analysis Total . | . . . . . Derelict Logs Recovered 2 | . . 2 . . Drone Launches 2 | . . . . 2 Drone Recoveries . | . . . . . Exploration | -11 -10 -10 -9 -9 ------------- Run | Scr Mat Min Mat Sto Turns Passed 3156 | 154 571 768 1093 570 Spaces Moved 1948 | 119 457 613 483 276 Core 61 | 30 . . 18 13 Treads 498 | . . . 297 201 Legs 181 | 89 71 . 21 . Wheels 196 | . . . 134 62 Hover 1012 | . 386 613 13 . Flight . | . . . . . Fastest Speed 50 | 50 56 60 110 80 Average Speed 118 | 102 76 107 155 152 Slowest Speed 550 | 120 120 240 550 300 Overloaded Moves . | . . . . . Propulsion Burnouts . | . . . . . Robots Hopped . | . . . . . Cave-ins Triggered . | . . . . . Exploration Rate (%) 50 | 8 67 99 46 31 Regions Visited 4 Branch Regions 2 Pre-discovered Areas 1 | . . 1 . . Known Exits Taken . | . . . . . Unknown Exits Taken 4 | 1 1 1 1 . Scrap Searched 2 | . . 2 . . Spaces Dug . | . . . . . Terrain Destroyed 99 | . 76 23 . . Melee . | . . . . . Projectile . | . . . . . AOE 99 | . 76 23 . . Actions | -11 -10 -10 -9 -9 --------- Run | Scr Mat Min Mat Sto Total 2546 | 150 619 718 685 374 Wait 219 | 1 60 90 60 8 Move 1944 | 118 456 612 482 276 Hop . | . . . . . Pick Up 74 | 12 23 5 20 14 Fast Attach . | . . . . . Attach 59 | 9 16 4 18 12 Detach 14 | 2 1 1 8 2 Swap 1 | . 1 . . . Drop 43 | 3 17 2 12 9 Fire 118 | 5 43 4 19 47 Melee 72 | . . . 66 6 Ram 2 | . 2 . . . Kick . | . . . . . Crush . | . . . . . Escape Stasis . | . . . . . Rewire . | . . . . . Trap . | . . . . . Miscellaneous . | . . . . . Route ------- -11/Scrapyard -10/Materials (discovered 2 exits: [*Min x2]) -10/Mines (discovered 2 exits: *Mat x2) -9/Materials (discovered 2 exits: [*Mat] / *Sto) -9/Storage History --------- Turn | Location | Event 2 | -11/Scrapyard | Met Revision 17 99 | -11/Scrapyard | Discovered new exit (range 8) 155 | -11/Scrapyard | Entered Materials 269 | -10/Materials | Discovered new exit (range 6) 332 | -10/Materials | Build established: Mutant 703 | -10/Materials | Discovered new exit (range 14) 709 | -10/Materials | Lost 4 parts (1p1n2w) 726 | -10/Materials | Entered Mines 770 | -10/Mines | Discovered new exit (range 15) 774 | -10/Mines | Learned location of Zion (-7) 938 | -10/Mines | Found a damaged Exp. Sensor Array with a note attached 948 | -10/Mines | Found Prototype Device 1220 | -10/Mines | Discovered new exit (range 4) 1252 | -10/Mines | Learned Materials emergency access door positions 1494 | -10/Mines | Entered Materials 1494 | -9/Materials | Evolved 2 slots: Power x1, Utility x1 1906 | -9/Materials | Discovered new exit (range 19) 2002 | -9/Materials | Discovered new exit (range 15) 2064 | -9/Materials | Identified Exp. Sensor Array 2444 | -9/Materials | Lost 4 parts (2n1u1w) 2490 | -9/Materials | Core integrity fell below 50% 2584 | -9/Materials | Core integrity fell below 20% 2587 | -9/Materials | Entered Storage 3157 | -9/Storage | Destroyed by Y-45 Defender with Heavy Assault Rifle Last Messages --------------- R-06 Scavenger collects Aluminum Leg. Connecting with Terminal... >>Open Sealed Heavy Doors opened. Acquired Drone Bay. Dropped Power Shielding. Drone released from Drone Bay. You have a new controllable ally. Review and give out orders from the Allies menu (F6). Drone released from Drone Bay. Move into an ally to swap places with them. 460 XFA=PE,RNRV/,VMVD8K9ZZEGT R-06 Scavenger collects Power Shielding. Drone destroyed. K-01 Serf collects debris. Y-45 Defender destroyed. K-01 Serf collects debris. K-01 Serf cleans the Terminal. System corrupted: Matter fused (-8). [Achievement: First Step to Greatness] Map ----- +----------------------------------------------------+ | ??????????????????????????????????? | | ??????????????????????????????????? | | ??????????????????????????????????? | | ??????????????????????????????????? | | ??????????????????????????????????? | | ??????????????????????????????????? | | ??????????????????????????????????? | | ??????????????????????????????????? | | ??????????????????????????? ????? | | ??????????????????????????? ????? | | ??????????????????????????? #???? | | ??????????????????????????# #???? | | ??????????????????????????# #???? | | ??????????????????????????# #???? | | ??????????????????????????# #???? | | ??????????????????????????# #???? | | ??????????????????????????# #???? | | ??????????????????????????# #???? | | ??????????????????????????# #???? | | ??????????????????????????# #???? | | ??????????????????????????# #???? | | ??????????????????????????# #???? | | ??????????????????????????# #???? | | ????????????????#####+##### #???? | | ???????????????## #???? | | ???????????????+ @ #???? | | ???????????????## Y n #???? | | ????????????????### ###########???? | | ??????????????????# #?????????????? | | ??????????????????# #?????????????? | | ??????????????????# ######????????? | | ????# ##/####### % #T######???? | | ????# =%[ # #!! !#???? | | ????# *= % T + #???? | | ??^?+ ########## # #!!!!#???? | | ??^????########## ## ##########??? | | ??^????# #% # # | | ???????# """"" + + # | | ???????# """"" # # # | | ???????# """""% # # # | | ???????# % % *+ #? # | | ???????# *# #? # | | ???????# % # #?? # | | ???????##"T"###+#### #???######### | | ###?????###???# #??# #???????????? | | ""#??????###### #### T#??????????? | | T"######?#[[ + ## ##??????????? | | #?#[[ # #""""???????????? | | #?#[! # #???????????????? | | "" """ #?####T# #???????????????? | +----------------------------------------------------+ Best States ------------- Heat Dissipation 39 Energy Generation 23 Energy Capacity 460 Matter Stores 450 Matter Capacity 450 Sight Range 20 Robot Scan Range 30 Terrain Scan Density 10 Resistance: KI 20 Resistance: TH 20 Resistance: EX 20 Resistance: EM 20 Resistance: I 20 Resistance: S 20 Resistance: P 20 Power Shielding 33 Evasion (%) 53 Recoil Reduction 2 Offensive Hacking 10 Item Schematics ----------------- None Robot Schematics ------------------ None Fabricated ------------ Nothing Alien Tech Used ----------------- None Achievements -------------- Crack Shot First Step to Greatness Loot Pinata Novice Programmer One Hack Too Far Risk Taker Storm Trooper Uninvited Guest Challenges ------------ None Game ------ Seed HardenedLauncherCompressor Manual? 0 Play Time 01:31:16 Cumulative 3.0 hours Start 2020.05.31 @ 16:44:13 End 2020.05.31 @ 22:07:53 Sessions 3 Manual Loads 0 Difficulty Adventurer Special Mode None Game No. 1 Rogue 0 Adventurer 1 Explorer 0 Win Type - Total 0 Types 0/0/0/0/0/0/0 Lore% 1 Gallery% 4 Achievement% 3 Wizard Run 0 Options --------- ASCII 0 Keyboard 0 Movement Mouse Keybinds 0 Fullscreen 1 Font 12/Proggy Map View 83x54 Tactical HUD 0 Map Filters NONE Filters NONE Steam 1 RUN: 4cdf9278-6d4f-4dcc-ad31-544176b064a5